bitfinex/quotes_ETHUSD_20241104
["timestamp","ask_amount","ask_price","bid_price","bid_amount"]
[1730683069418,4.550735,2458.0,2457.4,0.55]
[1730683069419,4.06866,2457.9,2457.4,0.55]
[1730683069615,4.06868,2457.8,2457.5,0.55]
[1730683069915,4.06868,2457.8,2457.7,0.55]
[1730683069916,0.813702,2457.8,2457.7,0.55]
[1730683070097,4.0686,2457.9,2457.7,0.55]
[1730683070303,4.06867,2457.8,2457.7,0.10930097]
[1730683070673,4.82446,2457.7,2457.3,0.55]
[1730683070878,4.82445,2457.7,2457.2,0.55]
[1730683071281,0.7556,2457.7,2457.2,4.61962]
[1730683071621,0.7556,2457.7,2456.9,8.69077816]
[1730683071622,0.7556,2457.7,2457.4,0.55]
[1730683072203,0.7556,2457.7,2457.3,0.55]
[1730683072804,0.7556,2457.7,2457.2,0.55]
[1730683073009,4.82447,2457.7,2457.0,0.55]
[1730683073205,4.06909,2457.6,2457.0,0.55]
[1730683073723,4.06909,2457.6,2457.0,4.61999]
[1730683074082,9.375897,2457.7,2457.0,4.61999]
[1730683074296,5.306917,2457.7,2457.0,4.61999]
[1730683074498,5.306917,2457.7,2457.2,0.55]
[1730683075329,4.06809,2458.2,2457.2,0.55]
[1730683075330,0.8256,2458.2,2457.5,4.58077816]
[1730683075624,0.8256,2458.2,2457.6,8.76918821]
[1730683075808,4.06788,2458.3,2457.6,8.76918821]
[1730683075809,8.13586,2458.3,2457.8,0.55]
[1730683076211,4.06809,2458.2,2457.8,0.55]
[1730683076411,4.06788,2458.3,2457.8,0.55]
[1730683076822,4.06813,2458.2,2457.7,0.55]
[1730683077187,4.06819,2458.1,2457.7,0.55]
[1730683077926,8.13649,2458.1,2457.7,0.55]
[1730683078226,8.13649,2458.1,2457.2,4.58077816]
[1730683078227,0.813649,2458.1,2457.3,0.55]
[1730683078440,4.06854,2457.9,2457.5,0.55]
[1730683078725,4.0688,2457.8,2457.3,0.55]
[1730683078930,0.8256,2457.7,2457.3,0.55]
[1730683079437,4.89445,2457.7,2457.2,0.55]
[1730683079795,0.8256,2457.7,2457.2,0.55]
[1730683080094,4.89449,2457.7,2457.1,4.886]
[1730683080436,4.06909,2457.6,2457.1,0.8163]
[1730683080593,4.06909,2457.6,2457.0,4.06993]
[1730683080794,4.06909,2457.6,2457.0,4.07]
[1730683081094,4.06909,2457.6,2456.9,7.07006]
[1730683081310,4.06922,2457.5,2457.0,0.55]
[1730683081698,0.8256,2457.4,2457.0,0.55]
[1730683082023,0.8256,2457.4,2456.8,0.8163]
[1730683082024,4.06958,2457.3,2456.8,3.0]
[1730683082389,0.8256,2457.4,2456.6,1.65593124]
[1730683082390,4.06981,2457.2,2456.6,1.65593124]
[1730683082585,4.06981,2457.2,2456.6,0.69624238]
[1730683082586,4.07003,2457.0,2456.6,0.69624238]
[1730683082786,4.07003,2457.0,2456.5,4.15210226]
[1730683082787,0.8256,2457.0,2456.5,4.15210226]
[1730683083033,0.8256,2457.0,2456.7,4.07042]
[1730683083237,8.96513,2457.2,2456.8,0.80808682]
[1730683083398,5.791873,2457.2,2456.8,0.11023248]
[1730683083597,1.722113,2457.2,2456.8,0.11023248]
[1730683083879,4.07016,2456.9,2456.8,0.11023248]
[1730683084137,0.8256,2456.9,2456.8,0.11023248]
[1730683084290,0.8256,2457.2,2456.8,1.74637835]
[1730683084628,0.8256,2457.2,2456.9,1.74637835]
[1730683084838,0.8256,2457.2,2457.0,0.69959522]
[1730683085132,4.06983,2457.1,2457.0,0.10672375]
[1730683085517,4.06983,2457.1,2456.7,0.55]
[1730683085518,4.07013,2457.0,2456.7,0.55]
[1730683085717,4.07033,2456.8,2456.7,0.55]
[1730683085932,4.477363,2456.8,2456.5,0.83963124]
[1730683086115,4.89586,2456.9,2456.6,1.74874425]
[1730683086428,4.07033,2456.8,2456.5,0.83963124]
[1730683086627,4.07033,2456.8,2456.6,0.69932247]
[1730683086828,4.89586,2456.9,2456.5,1.04897458]
[1730683087001,8.96617,2456.9,2456.6,0.69930287]
[1730683087200,4.07035,2456.8,2456.5,1.59895402]
[1730683087420,4.07035,2456.8,2456.6,0.69930161]
[1730683087635,4.07035,2456.8,2456.5,0.55]
[1730683087834,4.07051,2456.7,2456.5,0.55]
[1730683088144,9.862797,2456.9,2456.5,1.59878159]
[1730683088335,9.862797,2456.9,2456.4,0.55]
[1730683088537,4.07034,2456.8,2456.4,1.59860711]
[1730683089046,0.8256,2456.7,2456.4,1.59860711]
[1730683089236,0.8256,2456.7,2456.4,0.55]
[1730683089546,4.89611,2456.7,2456.3,0.55]
[1730683089745,8.96671,2456.7,2456.3,0.55]
[1730683089952,4.07068,2456.6,2456.3,0.55]
[1730683090107,5.792781,2456.7,2456.3,0.55]
[1730683090317,5.792781,2456.7,2456.2,0.55]
[1730683090318,5.792861,2456.7,2456.2,0.55]
[1730683090620,0.8256,2456.7,2456.2,6.36833578]
[1730683090845,4.0708,2456.6,2456.1,0.42528595]
[1730683091023,4.0708,2456.6,2456.2,0.55]
[1730683091220,4.07085,2456.5,2456.2,0.55]
[1730683092727,4.071,2456.4,2456.2,0.55]
[1730683093049,4.07163,2456.1,2455.5,4.93772924]
[1730683093254,4.07169,2456.0,2455.5,0.025748]
[1730683093408,4.07169,2456.0,2455.5,0.45116041]
[1730683093409,4.07176,2456.0,2455.5,0.45116041]
[1730683093608,4.07183,2455.9,2455.5,0.45116041]
[1730683093863,4.07217,2455.7,2455.5,0.025748]
[1730683094147,4.07199,2455.8,2455.5,0.025748]
[1730683095010,4.07208,2455.8,2455.5,0.025748]
[1730683095453,4.07228,2455.7,2455.5,0.025748]
[1730683095755,4.07232,2455.6,2455.5,0.025748]
[1730683096093,4.89792,2455.6,2455.5,0.025748]
[1730683097088,4.07195,2455.9,2455.5,0.025748]
[1730683097805,4.072,2455.8,2455.5,0.025748]
[1730683098089,4.072,2455.8,2455.6,0.1088889]
[1730683098287,0.8256,2456.0,2455.6,0.1088889]
[1730683098451,4.89735,2456.0,2455.6,0.1088889]
[1730683098654,4.072,2455.8,2455.6,0.1088889]
[1730683099865,4.07207,2455.8,2455.6,0.1088889]
[1730683100360,8.14419,2455.8,2455.6,0.1088889]
[1730683100952,4.07215,2455.7,2455.6,0.1088889]
[1730683101354,5.712172,2455.7,2455.6,0.1088889]
[1730683101781,5.712172,2455.7,2455.5,0.025748]
[1730683102099,4.89775,2455.7,2455.6,0.10887016]
[1730683104904,4.07167,2456.0,2455.6,0.10887016]
[1730683104905,4.83513,2456.0,2455.6,0.10887016]
[1730683105196,8.90687,2456.0,2455.6,0.10887016]
[1730683105497,4.83513,2456.0,2455.6,0.10887016]
[1730683105853,4.07194,2455.9,2455.6,0.10887016]
[1730683107068,4.83507,2456.0,2455.6,0.10887016]
[1730683107272,4.83484,2456.2,2455.7,0.55]
[1730683107572,4.83484,2456.2,2455.8,0.47311202]
[1730683107901,4.07144,2456.2,2455.9,0.65868518]
[1730683108259,4.07143,2456.2,2455.9,0.65868518]
[1730683108702,4.07166,2456.0,2455.9,0.10868518]
[1730683108859,4.07166,2456.0,2455.5,0.816648]
[1730683109066,4.07166,2456.0,2455.6,1.55502222]
[1730683110972,8.14377,2455.9,2455.6,0.65885142]
[1730683111287,4.07215,2455.7,2455.6,0.10885142]
[1730683111483,5.649967,2455.7,2455.6,0.10885142]
[1730683111899,5.649967,2455.7,2455.5,0.025748]
[1730683112108,4.07232,2455.6,2455.5,0.025748]
[1730683112971,4.07232,2455.6,2455.5,0.13472875]
[1730683118391,4.07232,2455.6,2455.5,0.11721355]
[1730683119164,6.88524217,2456.1,2455.5,0.11721355]
[1730683119165,4.82205,2456.0,2455.5,0.11721355]
[1730683119364,4.07159,2456.1,2455.6,4.62223]
[1730683119594,4.07172,2456.0,2455.6,0.65906066]
[1730683120172,4.07151,2456.1,2455.6,0.65906066]
[1730683120372,4.07151,2456.1,2455.6,1.30122624]
[1730683120612,4.0715,2456.1,2455.6,5.37351624]
[1730683120975,4.0715,2456.1,2455.6,1.30122624]
[1730683121203,8.14309,2456.1,2455.6,1.30122624]
[1730683121414,4.07173,2456.0,2455.6,1.30122624]
[1730683126220,4.0715,2456.1,2455.6,1.30122624]
[1730683126510,4.07133,2456.2,2455.7,4.68682962]
[1730683126817,4.07133,2456.2,2455.7,0.72359099]
[1730683127009,4.0715,2456.1,2455.7,0.72359099]
[1730683127473,8.14311,2456.1,2455.7,0.73182379]
[1730683127675,4.07166,2456.0,2455.7,0.11711417]
[1730683128077,4.07192,2455.9,2455.7,0.11711417]
[1730683128830,4.07199,2455.8,2455.7,0.11711417]
[1730683129217,4.82229,2455.8,2455.7,0.11711417]
[1730683129715,4.82229,2455.8,2455.7,0.0082328]
[1730683129918,5.711711,2455.8,2455.7,0.0082328]
[1730683130114,5.711711,2455.8,2455.7,0.1170673]
[1730683130782,5.711711,2455.8,2455.7,0.0082328]
[1730683132380,5.711711,2455.8,2455.7,0.11717661]
[1730683132916,5.711711,2455.8,2455.7,0.0082328]
[1730683133124,7.8219,2456.1,2455.7,0.0082328]
[1730683133325,4.07126,2456.3,2455.8,0.7734]
[1730683133492,4.07079,2456.6,2455.9,0.55]
[1730683133703,4.0705,2456.7,2456.4,0.55]
[1730683133879,4.07023,2456.9,2456.4,0.55]
[1730683133880,4.07034,2456.8,2456.4,0.55]
[1730683134085,4.07023,2456.9,2456.4,0.55]
[1730683134401,4.07043,2456.8,2456.5,0.10829043]
[1730683135123,4.07023,2456.9,2456.5,0.10829043]
[1730683135291,4.07023,2456.9,2456.5,0.65857247]
[1730683135879,4.07041,2456.8,2456.5,0.65857247]
[1730683136078,4.07066,2456.6,2456.5,0.10829043]
[1730683136282,4.0705,2456.7,2456.5,0.10829043]
[1730683136483,4.0705,2456.7,2456.1,0.8548213]
[1730683136707,4.0705,2456.7,2456.3,0.55]
[1730683136923,4.06959,2457.3,2456.7,4.62037]
[1730683137119,4.06913,2457.6,2457.0,4.06991]
[1730683137292,0.7503,2457.7,2457.1,0.55]
[1730683137616,8.1389,2457.4,2457.3,0.55]
[1730683137820,4.06913,2457.6,2457.3,0.55]
[1730683137979,4.06913,2457.6,2457.3,0.65725039]
[1730683138178,4.06911,2457.6,2457.3,0.65725039]
[1730683138921,4.06934,2457.4,2457.3,0.65725039]
[1730683139285,4.06911,2457.6,2457.3,0.65725039]
[1730683139621,4.06931,2457.5,2457.3,0.65725039]
[1730683140424,8.13864,2457.5,2457.3,0.65725039]
[1730683140724,3.7503,2458.0,2457.3,0.65725039]
[1730683140725,4.06895,2457.7,2457.3,0.65725039]
[1730683140890,4.06901,2457.6,2457.3,1.43065039]
[1730683141081,4.06895,2457.7,2457.3,1.43065039]
[1730683141721,4.06843,2458.0,2457.3,5.50006039]
[1730683142027,4.0687,2457.8,2457.5,0.55]
[1730683142231,4.06914,2457.6,2457.3,0.88065039]
[1730683142383,4.06914,2457.6,2457.3,0.7734]
[1730683142578,4.06874,2457.8,2457.4,0.55]
[1730683142983,4.06874,2457.8,2457.6,0.55]
[1730683143531,4.06884,2457.7,2457.4,0.55]
[1730683144052,4.06874,2457.8,2457.4,0.55]
[1730683144980,4.06901,2457.6,2457.4,0.55]
[1730683145184,4.06917,2457.5,2457.4,0.55]
[1730683145422,8.13762,2457.8,2457.4,0.55]
[1730683145888,4.06914,2457.6,2457.4,0.55]
[1730683146084,4.06885,2457.7,2457.4,0.55]
[1730683146887,4.06904,2457.6,2457.4,0.55]
[1730683147093,4.06885,2457.7,2457.4,0.55]
[1730683147387,1.2803208,2458.1,2457.2,0.55]
[1730683147740,1.2803208,2458.1,2457.1,0.85478672]
[1730683147741,4.06824,2458.1,2457.7,0.55]
[1730683147957,7.82941,2458.4,2457.7,0.55]
[1730683148234,4.0681,2458.2,2457.7,0.55]
[1730683148532,3.7616,2458.4,2457.7,0.55]
[1730683148533,4.06846,2458.0,2457.7,0.55]
[1730683148703,4.06853,2457.9,2457.7,0.55]
[1730683149639,4.06845,2458.0,2457.7,0.55]
[1730683150129,4.0682,2458.1,2457.7,0.55]
[1730683150640,4.06823,2458.1,2457.7,0.55]
[1730683150806,0.813636,2458.1,2457.7,0.55]
[1730683150993,4.06878,2457.8,2457.3,0.7971]
[1730683151194,4.06911,2457.6,2457.3,0.7971]
[1730683151507,4.06894,2457.7,2457.3,0.7971]
[1730683151920,4.06868,2457.8,2457.3,0.7971]
[1730683152126,8.13782,2457.7,2457.3,0.7971]
[1730683152437,4.83023,2457.9,2457.4,0.55]
[1730683152624,4.06885,2457.7,2457.4,0.55]
[1730683152822,4.06868,2457.8,2457.4,0.55]
[1730683153026,4.06849,2458.0,2457.4,4.61932]
[1730683153201,4.06849,2458.0,2457.4,5.57605108]
[1730683153532,4.06852,2457.9,2457.4,1.50673108]
[1730683153698,4.06852,2457.9,2457.4,0.55]
[1730683154943,8.13713,2457.9,2457.4,0.55]
[1730683155527,4.06879,2457.8,2457.4,0.55]
[1730683158025,4.06879,2457.8,2457.6,0.55]
[1730683158650,4.06807,2458.2,2457.9,0.55]
[1730683158969,4.06715,2458.8,2458.2,0.55]
[1730683159254,4.06721,2458.7,2458.4,0.55]
[1730683159407,4.06752,2458.5,2458.4,0.55]
[1730683159741,4.06735,2458.6,2458.5,0.10541374]
[1730683159948,4.06752,2458.5,2458.4,0.10549292]
[1730683160242,4.06777,2458.4,2458.1,0.55]
[1730683160444,0.7616,2458.7,2458.1,0.55]
[1730683160650,4.06758,2458.5,2458.1,0.55]
[1730683160944,4.06783,2458.4,2458.1,0.55]
[1730683161302,4.06758,2458.5,2458.1,0.55]
[1730683161747,8.13458,2458.7,2458.3,0.55]
[1730683161906,4.06728,2458.7,2458.3,1.09965103]
[1730683162105,4.06749,2458.6,2458.3,0.55]
[1730683162816,4.06755,2458.5,2458.3,0.55]
[1730683163740,8.13515,2458.5,2458.3,0.55]
[1730683163938,4.06768,2458.4,2458.3,0.55]
[1730683164138,4.06768,2458.4,2458.1,0.55]
[1730683164139,4.06779,2458.4,2458.1,0.55]
[1730683164308,4.06619,2459.3,2458.6,4.06723]
[1730683164509,4.06666,2459.1,2458.6,0.55]
[1730683164737,4.06619,2459.3,2458.5,0.55]
[1730683164948,4.0671,2458.8,2458.5,0.55]
[1730683165257,4.06679,2459.0,2458.5,8.68494]
[1730683165553,4.06648,2459.2,2458.7,4.61705]
[1730683165756,4.06647,2459.2,2458.7,4.61705]
[1730683166408,4.06616,2459.4,2458.9,0.55]
[1730683166635,4.06613,2459.4,2458.9,4.61671]
[1730683167348,4.06627,2459.3,2458.9,0.55]
[1730683167710,4.06646,2459.2,2458.9,0.55]
[1730683167913,4.06661,2459.1,2458.9,0.55]
[1730683168632,8.13225,2459.4,2458.9,0.55]
[1730683168843,4.06606,2459.4,2459.1,0.55]
[1730683169207,4.0662,2459.3,2459.1,0.55]
[1730683169559,4.0662,2459.3,2458.9,0.55]
[1730683169849,4.06606,2459.4,2458.9,5.5641775]
[1730683170375,4.06619,2459.3,2458.9,1.4973375]
[1730683170987,0.0526339,2459.6,2459.4,4.06602]
[1730683171138,0.0526339,2459.6,2459.3,0.55]
[1730683171139,0.0526339,2459.6,2459.5,1.754302]
[1730683171480,0.0526339,2459.6,2459.5,1.3477]
[1730683172129,0.0526339,2459.6,2459.5,0.55]
[1730683172478,0.0526339,2459.6,2459.4,0.55]
[1730683173025,0.0526339,2459.6,2459.5,0.65360033]
[1730683174354,0.0526339,2459.6,2459.5,1.2134808]
[1730683175561,0.0526339,2459.6,2459.5,0.65360033]
[1730683175949,0.0526339,2459.6,2459.5,4.71946033]
[1730683176147,0.0526339,2459.6,2459.5,0.65360033]
[1730683177379,4.06517,2460.0,2459.6,0.55]
[1730683177552,4.06523,2459.9,2459.6,0.55]
[1730683177750,4.06549,2459.8,2459.7,0.10339853]
[1730683177969,4.06549,2459.8,2459.7,0.65339853]
[1730683179592,4.06549,2459.8,2459.7,0.10339853]
[1730683179775,4.06556,2459.7,2459.4,0.55]
[1730683179978,4.06556,2459.7,2459.4,1.01829422]
[1730683180200,0.7591,2459.8,2459.4,1.01829422]
[1730683180517,4.06595,2459.5,2459.2,0.55]
[1730683180992,4.06623,2459.3,2458.9,4.83257967]
[1730683181192,4.06623,2459.3,2459.0,0.88995897]
[1730683181403,4.06636,2459.2,2459.0,0.88995897]
[1730683181556,4.06636,2459.2,2458.9,0.8019]
[1730683181757,4.06636,2459.2,2458.7,0.8019]
[1730683181960,0.7591,2459.3,2458.6,3.88524217]
[1730683182156,0.7591,2459.3,2458.5,0.8019]
[1730683182157,4.06713,2458.8,2458.5,0.8019]
[1730683182398,4.06713,2458.8,2458.2,0.8019]
[1730683182799,8.13426,2458.8,2458.2,4.86982]
[1730683183098,4.0674,2458.6,2458.3,0.893798]
[1730683183298,4.0674,2458.6,2458.2,0.8019]
[1730683183299,8.13489,2458.6,2458.2,0.8019]
[1730683183507,4.0674,2458.6,2458.2,0.8019]
[1730683183689,4.82623,2458.8,2458.2,0.8019]
[1730683183897,4.82623,2458.8,2458.2,4.86977]
[1730683184079,4.06713,2458.8,2458.3,4.96976205]
[1730683184263,4.06713,2458.8,2458.4,0.55]
[1730683184697,4.06688,2458.9,2458.4,4.61764]
[1730683184908,4.06688,2458.9,2458.6,0.55]
[1730683186272,8.13297,2459.2,2458.6,0.55]
[1730683186511,4.0662,2459.3,2458.8,4.61693]
[1730683186805,8.1325,2459.3,2459.0,0.55]
[1730683187015,4.0662,2459.3,2459.0,0.55]
[1730683187308,4.06555,2459.7,2459.0,0.55]
[1730683187309,4.06558,2459.7,2459.0,0.63133322]
[1730683187461,4.06558,2459.7,2459.2,0.55]
[1730683187911,0.7591,2459.8,2459.4,0.55]
[1730683187912,4.06537,2459.8,2459.4,0.55]
[1730683188079,4.06555,2459.7,2459.4,1.45514222]
[1730683188271,4.06538,2459.8,2459.5,0.10058802]
[1730683188476,4.06554,2459.7,2459.5,0.10058802]
[1730683188774,4.06534,2459.9,2459.5,0.10058802]
[1730683188995,8.13065,2459.9,2459.6,0.55]
[1730683189229,4.06531,2459.9,2459.7,0.10026164]
[1730683189669,4.06537,2459.8,2459.7,0.65026164]
[1730683190204,8.13065,2459.9,2459.7,0.65026164]
[1730683190602,4.06531,2459.9,2459.7,0.65026164]
[1730683191272,4.06537,2459.8,2459.7,0.10026164]
[1730683191612,4.06505,2460.0,2459.7,0.8019]
[1730683191912,4.06505,2460.0,2459.8,0.1001483]
[1730683192407,4.06505,2460.0,2459.9,0.10006921]
[1730683192710,4.06505,2460.0,2459.7,0.8019]
[1730683192935,4.06505,2460.0,2459.9,0.10006921]
[1730683193071,4.06505,2460.0,2459.8,0.1001483]
[1730683193270,4.06505,2460.0,2459.9,0.10005987]
[1730683193565,4.06505,2460.0,2459.7,0.8019]
[1730683193798,4.06464,2460.3,2459.9,0.10002251]
[1730683194070,4.06472,2460.2,2459.8,0.55]
[1730683194286,4.06464,2460.3,2460.0,0.55]
[1730683194708,4.06482,2460.2,2460.1,0.64959034]
[1730683196301,4.06471,2460.2,2460.1,0.64959034]
[1730683196479,4.06431,2460.5,2460.1,0.64959034]
[1730683196704,4.06431,2460.5,2460.2,0.55]
[1730683196912,4.06398,2460.7,2460.2,2.22985603]
[1730683197257,4.06398,2460.7,2460.4,0.55]
[1730683197456,4.06397,2460.7,2460.4,0.55]
[1730683197750,4.06397,2460.7,2460.5,0.09920874]
[1730683198563,4.1246567,2460.8,2460.5,0.09920874]
[1730683199606,0.0608667,2460.8,2460.7,0.8019]
[1730683199808,0.0608667,2460.8,2460.7,1.3519]
[1730683200049,0.0608667,2460.8,2460.7,1.45071731]
[1730683200436,0.0608667,2460.8,2460.7,5.51459731]
[1730683200624,0.0608667,2460.8,2460.7,6.86910257]
[1730683200833,0.0608667,2460.8,2460.7,9.95036254]
[1730683201070,0.0608667,2460.8,2460.7,9.86910257]
[1730683201560,0.0608667,2460.8,2460.7,2.80522257]
[1730683201756,0.0608667,2460.8,2460.7,1.45071731]
[1730683203558,0.0608667,2460.8,2460.7,8.51459731]
[1730683204556,0.0608667,2460.8,2460.7,8.52459731]
[1730683204854,4.82109,2461.9,2461.5,0.55]
[1730683205382,4.07075,2462.6,2461.5,0.55]
[1730683205383,0.0608667,2463.3,2462.1,4.06157]
[1730683205663,4.1205667,2463.3,2462.6,4.61072]
[1730683205874,4.06027,2462.9,2462.6,0.55]
[1730683206017,4.06027,2462.9,2462.7,0.09669005]
[1730683206223,0.7591,2463.1,2462.4,0.55]
[1730683206224,4.81913,2463.1,2462.4,0.55]
[1730683206432,4.06025,2462.9,2462.8,0.09338448]
[1730683206626,1.24709967,2463.1,2462.4,0.55]
[1730683206627,4.06058,2462.7,2462.4,0.55]
[1730683206917,4.06039,2462.9,2462.8,0.09338448]
[1730683207234,4.06104,2462.5,2462.0,0.55]
[1730683207559,4.0614,2462.2,2462.1,0.09393693]
[1730683207852,4.0614,2462.2,2461.6,4.86428]
[1730683207853,4.06166,2462.1,2461.7,0.55]
[1730683208066,4.06174,2462.0,2461.8,0.09417379]
[1730683208211,4.06174,2462.0,2461.2,3.88524217]
[1730683208212,4.0625,2461.6,2461.2,0.8246]
[1730683208421,4.0625,2461.6,2461.3,0.09456869]
[1730683208757,4.06233,2461.7,2461.3,0.09456869]
[1730683208923,4.0621,2461.8,2461.3,0.09456869]
[1730683209616,0.4468274,2461.8,2461.3,0.09456869]
[1730683209818,4.06272,2461.4,2460.9,0.8246]
[1730683210064,4.8199,2461.9,2461.0,0.09452596]
[1730683210065,4.06322,2461.1,2461.0,0.09452596]
[1730683210355,8.05652,2461.1,2460.6,0.8246]
[1730683210532,3.99322,2461.1,2460.6,0.8246]
[1730683210727,3.88524217,2461.7,2460.7,0.09476303]
[1730683210728,4.06359,2460.9,2460.7,0.09476303]
[1730683211255,4.06371,2460.8,2460.7,0.09476303]
[1730683211458,4.06347,2461.0,2460.7,0.09476303]
[1730683211664,4.06333,2461.1,2460.7,0.09476303]
[1730683211665,4.06367,2460.9,2460.7,0.09476303]
[1730683211831,4.0639,2460.7,2460.2,0.8246]
[1730683212015,4.06308,2461.2,2460.2,0.8246]
[1730683212016,4.06355,2460.9,2460.8,0.094684]
[1730683212219,4.06355,2460.9,2460.2,0.8246]
[1730683212220,4.06383,2460.8,2460.2,0.8246]
[1730683212528,4.06403,2460.7,2460.2,0.8246]
[1730683212736,8.12805,2460.7,2460.2,0.8246]
[1730683212966,4.06424,2460.5,2460.2,1.32167966]
[1730683213173,4.06424,2460.5,2459.7,0.486773]
[1730683213174,4.06397,2460.7,2460.0,4.06502]
[1730683213821,4.06421,2460.5,2459.9,0.8246]
[1730683214031,4.06397,2460.7,2459.9,0.8246]
[1730683214245,4.06434,2460.5,2460.0,0.55]
[1730683214720,4.06389,2460.7,2460.0,0.63129153]
[1730683214926,4.06405,2460.6,2460.0,0.63129153]
[1730683215354,4.06421,2460.5,2460.1,0.55210615]
[1730683215571,4.06358,2460.9,2460.0,0.55]
[1730683215872,4.06463,2460.3,2459.9,0.8246]
[1730683216344,4.06472,2460.2,2459.9,0.8246]
[1730683216547,4.06488,2460.1,2459.6,0.8246]
[1730683216763,8.12933,2460.3,2459.6,5.379322]
[1730683217072,4.06493,2460.1,2459.6,1.313652]
[1730683217361,8.1299,2460.1,2459.6,1.313652]
[1730683217529,4.06493,2460.1,2459.6,1.313652]
[1730683218032,8.12994,2460.1,2459.7,0.09425319]
[1730683218361,4.06512,2460.0,2459.8,0.55]
[1730683218519,4.06537,2459.8,2459.7,0.09425319]
[1730683218716,4.06583,2459.6,2459.2,0.8246]
[1730683218916,4.06587,2459.5,2459.2,0.8246]
[1730683219121,8.13163,2459.6,2459.2,0.8246]
[1730683219353,4.06595,2459.5,2459.2,0.8246]
[1730683219920,4.06661,2459.1,2458.9,0.8246]
[1730683220274,4.0663,2459.3,2458.6,0.8246]
[1730683220425,0.758,2459.4,2458.6,0.8246]
[1730683220632,4.06637,2459.2,2458.6,4.89186]
[1730683221193,4.06694,2458.9,2458.6,0.8246]
[1730683221332,8.13389,2458.9,2458.4,0.0608667]
[1730683221538,4.82409,2459.4,2458.4,0.55620437]
[1730683221539,4.06732,2458.7,2458.4,0.55620437]
[1730683221739,4.06728,2458.7,2458.4,0.0608667]
[1730683222237,4.06704,2458.8,2458.4,0.0608667]
[1730683222438,4.06669,2459.0,2458.5,0.51422074]
[1730683222738,4.06735,2458.6,2458.4,0.0608667]
[1730683224043,3.0,2459.2,2458.4,0.0608667]
[1730683224285,4.06686,2458.9,2458.5,0.55]
[1730683224471,8.13387,2458.9,2458.5,0.55]
[1730683224888,8.13385,2458.9,2458.5,0.55]
[1730683225383,4.06686,2458.9,2458.5,0.55]
[1730683226189,4.06686,2458.9,2458.7,0.55]
[1730683226487,4.82415,2459.4,2458.8,0.8207]
[1730683226648,4.82415,2459.4,2458.9,0.55]
[1730683226649,4.0664,2459.2,2458.9,0.55]
[1730683226853,0.758,2459.4,2458.4,0.8815667]
[1730683226854,4.06688,2458.9,2458.4,0.8815667]
[1730683227066,4.06703,2458.8,2458.6,0.55]
[1730683227252,4.06688,2458.9,2458.5,0.79492967]
[1730683227459,0.758,2459.4,2458.5,0.55]
[1730683227460,4.06664,2459.1,2458.5,0.55]
[1730683227665,4.06663,2459.1,2458.5,4.56749]
[1730683227877,4.0663,2459.3,2458.8,0.8207]
[1730683229075,4.06638,2459.2,2458.8,0.8207]
[1730683229279,4.06638,2459.2,2458.8,1.30948]
[1730683229655,4.06564,2459.7,2459.0,4.06658]
[1730683229898,4.06596,2459.5,2459.1,0.55]
[1730683230201,4.0662,2459.3,2458.9,0.55]
[1730683230710,4.06679,2459.0,2458.6,0.55]
[1730683231074,4.06705,2458.8,2458.5,0.8207]
[1730683231717,4.06646,2459.2,2458.6,4.06734]
[1730683232013,8.13291,2459.2,2458.7,0.488804]
[1730683232170,8.13297,2459.2,2458.7,0.488804]
[1730683232369,0.8132,2459.5,2458.7,0.57014558]
[1730683232370,4.06613,2459.4,2458.7,0.57014558]
[1730683232622,4.06611,2459.4,2458.8,4.06697]
[1730683232969,4.06611,2459.4,2459.0,0.55]
[1730683233173,4.0657,2459.6,2459.1,0.91049847]
[1730683233413,4.0657,2459.6,2459.2,0.55]
[1730683233711,4.06564,2459.7,2459.3,0.08963709]
[1730683233911,4.06573,2459.6,2459.3,0.08963709]
[1730683234223,4.06573,2459.6,2459.2,0.55]
[1730683234414,4.06573,2459.6,2459.3,0.08958416]
[1730683234636,4.06603,2459.4,2459.2,0.55]
[1730683234916,4.06587,2459.5,2459.3,0.08958416]
[1730683235276,4.06587,2459.5,2459.2,0.55]
[1730683235474,4.06587,2459.5,2459.3,0.08958416]
[1730683235702,4.06587,2459.5,2459.2,0.55]
[1730683235918,4.06587,2459.5,2459.4,0.08950504]
[1730683236122,4.0653,2459.9,2459.4,0.55]
[1730683236329,4.06489,2460.1,2459.4,4.78683301]
[1730683236619,4.06467,2460.3,2459.8,0.55]
[1730683237023,4.06438,2460.4,2460.0,0.55]
[1730683237185,1.2901906,2460.8,2460.0,0.55]
[1730683237387,4.0644,2460.4,2460.2,0.55]
[1730683237788,4.01416,2460.6,2460.0,4.61494]
[1730683238142,4.06433,2460.5,2460.0,0.96463841]
[1730683238322,4.06447,2460.4,2460.2,0.55]
[1730683238491,4.06422,2460.5,2460.2,0.55]
[1730683238824,4.06437,2460.4,2460.3,0.08879325]
[1730683238977,4.06422,2460.5,2459.8,0.08129358]
[1730683239172,4.06453,2460.4,2459.9,0.63910954]
[1730683239399,4.06422,2460.5,2459.9,4.70429954]
[1730683239597,4.06397,2460.7,2460.2,4.06468]
[1730683239924,4.06315,2461.2,2460.6,0.755]
[1730683239925,4.06308,2461.2,2460.6,0.755]
[1730683240079,4.06308,2461.2,2460.8,0.55]
[1730683240273,4.0629,2461.3,2460.8,4.6137]
[1730683240473,4.0629,2461.3,2460.9,0.08807935]
[1730683241120,4.06307,2461.2,2460.9,0.08807935]
[1730683241325,4.06284,2461.4,2461.0,0.55]